bitfinex/quotes_BTCUSD_20260215
["timestamp","ask_amount","ask_price","bid_price","bid_amount"]
[1771123846526,4e-05,69494.0,69491.0,0.07195079]
[1771123846733,4e-05,69494.0,69492.0,0.07195052]
[1771123846914,0.00504,69494.0,69492.0,0.07195052]
[1771123847764,4e-05,69494.0,69492.0,0.07195052]
[1771123848466,4e-05,69498.0,69492.0,0.07195052]
[1771123849023,0.005,69494.0,69492.0,0.07195052]
[1771123849226,4e-05,69498.0,69492.0,0.07195052]
[1771123849488,0.00604,69498.0,69492.0,0.07195052]
[1771123849859,4e-05,69498.0,69492.0,0.07195052]
[1771123850089,0.005,69494.0,69492.0,0.07195052]
[1771123850411,4e-05,69498.0,69491.0,0.03104613]
[1771123850557,0.00604,69498.0,69491.0,0.03104613]
[1771123851382,0.00604,69498.0,69492.0,0.07194989]
[1771123851968,4e-05,69498.0,69492.0,0.07194989]
[1771123852165,0.003,69494.0,69492.0,0.07194989]
[1771123852673,4e-05,69498.0,69492.0,0.07194989]
[1771123852871,0.00304,69498.0,69492.0,0.07194989]
[1771123853077,4e-05,69498.0,69492.0,0.07194989]
[1771123853272,0.001,69494.0,69492.0,0.07194989]
[1771123853717,4e-05,69496.0,69492.0,0.07194989]
[1771123854852,4e-05,69496.0,69493.0,0.07194953]
[1771123855530,0.00104,69496.0,69493.0,0.07194953]
[1771123855740,4e-05,69496.0,69493.0,0.07194953]
[1771123855902,0.0002463,69496.0,69493.0,0.07194953]
[1771123856103,0.0012463,69496.0,69492.0,0.07195031]
[1771123856314,0.0002463,69496.0,69492.0,0.07195031]
[1771123856721,0.0012463,69496.0,69492.0,0.07195031]
[1771123857944,0.0002463,69496.0,69492.0,0.07195031]
[1771123858123,0.0012463,69496.0,69492.0,0.07195031]
[1771123860606,0.0012463,69496.0,69491.0,0.07195134]
[1771123861002,0.07319325,69496.0,69489.0,0.07215316]
[1771123861607,0.07219325,69496.0,69489.0,0.07215316]
[1771123861812,0.07319325,69496.0,69489.0,0.07215316]
[1771123862039,0.07219325,69496.0,69489.0,0.07215316]
[1771123862365,0.07419325,69496.0,69489.0,0.07215316]
[1771123862723,0.0022463,69496.0,69489.0,0.0002]
[1771123862867,0.0022463,69496.0,69489.0,0.28848367]
[1771123863067,0.0022463,69496.0,69491.0,0.07195111]
[1771123863273,0.0022463,69496.0,69492.0,0.07242057]
[1771123863933,0.0002463,69496.0,69492.0,0.07242057]
[1771123864916,0.0012463,69496.0,69492.0,0.07242057]
[1771123867115,0.0002463,69496.0,69492.0,0.07242057]
[1771123867311,0.0012463,69496.0,69492.0,0.07242057]
[1771123868087,0.0002463,69496.0,69492.0,0.07242057]
[1771123868499,0.0012463,69496.0,69492.0,0.07242057]
[1771123868705,0.0002463,69496.0,69493.0,0.07194927]
[1771123868977,0.0004,69501.0,69500.0,0.07194244]
[1771123869175,0.0004,69507.0,69500.0,0.09682508]
[1771123869373,0.0004,69507.0,69501.0,0.09682375]
[1771123869568,0.0004,69507.0,69502.0,0.09682288]
[1771123869992,0.0004,69507.0,69502.0,0.02488264]
[1771123870206,0.0004,69507.0,69504.0,0.07193731]
[1771123870420,0.0004,69507.0,69504.0,0.02488264]
[1771123871452,0.0004,69507.0,69504.0,0.07193796]
[1771123871619,0.0001339,69509.0,69502.0,0.13985651]
[1771123871824,0.0001339,69509.0,69508.0,0.07193416]
[1771123872878,0.00019659,69509.0,69508.0,0.07193416]
[1771123874289,0.00019659,69509.0,69508.0,0.07293416]
[1771123874728,0.00019659,69509.0,69508.0,0.07193416]
[1771123875390,0.00044,69512.0,69508.0,0.07193416]
[1771123875500,0.00044,69512.0,69508.0,0.07293416]
[1771123876311,0.00044,69512.0,69508.0,0.001]
[1771123876543,0.07193313,69509.0,69508.0,0.001]
[1771123876789,0.07193227,69510.0,69502.0,0.07193969]
[1771123877079,0.07193227,69510.0,69508.0,0.001]
[1771123877270,0.07193227,69510.0,69495.0,0.06914719]
[1771123877271,0.07195176,69491.0,69486.0,0.0232466]
[1771123877470,0.02484024,69497.0,69486.0,4e-05]
[1771123877674,0.07195286,69490.0,69483.0,0.34464]
[1771123877844,0.07195105,69492.0,69483.0,0.41659991]
[1771123878072,0.02484024,69492.0,69487.0,0.07195577]
[1771123878217,0.02484024,69491.0,69485.0,0.07215792]
[1771123878628,0.02484024,69491.0,69487.0,0.07195569]
[1771123878852,0.07194806,69495.0,69487.0,0.07195569]
[1771123879059,0.09682713,69496.0,69489.0,0.07195372]
[1771123879262,0.09682713,69496.0,69489.0,0.07195322]
[1771123879263,4e-05,69496.0,69489.0,0.07195322]
[1771123879661,0.002,69490.0,69489.0,0.07195322]
[1771123880072,0.07198659,69496.0,69489.0,0.07195322]
[1771123880271,0.09882683,69496.0,69492.0,0.0002]
[1771123880724,0.09682683,69496.0,69492.0,0.0002]
[1771123881454,0.02484024,69495.0,69492.0,0.0002]
[1771123881667,0.09678875,69495.0,69492.0,0.0002]
[1771123882267,0.09678875,69495.0,69488.0,0.07195476]
[1771123882918,0.02484024,69495.0,69489.0,0.07195362]
[1771123883140,0.02784024,69495.0,69489.0,0.07195362]
[1771123883340,4e-05,69490.0,69489.0,0.07191362]
[1771123884684,4e-05,69490.0,69488.0,0.07195286]
[1771123884857,0.00104,69490.0,69489.0,0.07195383]
[1771123886487,4e-05,69490.0,69489.0,0.07195383]
[1771123887054,0.00204,69490.0,69489.0,0.07195383]
[1771123887257,0.00204,69490.0,69489.0,0.07215383]
[1771123887652,4e-05,69490.0,69489.0,0.07215383]
[1771123888059,0.00104,69490.0,69489.0,0.07215383]
[1771123888265,4e-05,69490.0,69489.0,0.0002]
[1771123888627,4e-05,69490.0,69489.0,0.07215383]
[1771123889605,0.00204,69490.0,69489.0,0.07215383]
[1771123889808,4e-05,69490.0,69489.0,0.07215383]
[1771123890259,0.00104,69490.0,69489.0,0.07215383]
[1771123895111,4e-05,69492.0,69491.0,0.07195176]
[1771123895315,4e-05,69492.0,69490.0,0.07195279]
[1771123895730,4e-05,69492.0,69491.0,0.07195176]
[1771123896665,0.00204,69492.0,69489.0,0.02281555]
[1771123896852,0.00204,69492.0,69491.0,0.07195176]
[1771123897058,4e-05,69492.0,69491.0,0.07195176]
[1771123897215,0.00204,69492.0,69491.0,0.07195176]
[1771123897421,4e-05,69492.0,69491.0,0.07195176]
[1771123897622,4e-05,69492.0,69490.0,0.07195235]
[1771123898781,0.00104,69492.0,69490.0,0.07195235]
[1771123899317,4e-05,69492.0,69490.0,0.07195235]
[1771123899459,0.00104,69492.0,69490.0,0.07195235]
[1771123899661,0.00104,69492.0,69486.0,0.26353562]
[1771123900008,4e-05,69494.0,69491.0,0.07195172]
[1771123900212,0.34468,69504.0,69499.0,0.07194348]
[1771123900213,4e-05,69504.0,69499.0,0.07194348]
[1771123900437,0.07233325,69509.0,69502.0,0.07193953]
[1771123900714,0.0004,69509.0,69504.0,0.07193808]
[1771123900912,0.0004,69509.0,69502.0,0.07193953]
[1771123901214,0.07193315,69509.0,69502.0,0.07194002]
[1771123901368,0.0623676,69509.0,69502.0,0.07194002]
[1771123901568,0.05236204,69509.0,69502.0,0.07194002]
[1771123901966,0.00064774,69510.0,69499.0,0.06582436]
[1771123902238,0.00064774,69510.0,69503.0,0.07193855]
[1771123902418,0.07258049,69510.0,69503.0,0.07193855]
[1771123903398,0.0004,69509.0,69503.0,0.07193855]
[1771123903805,0.0004,69509.0,69504.0,0.07193805]
[1771123904190,0.0004,69509.0,69508.0,0.07193416]
[1771123904401,0.0001713,69511.0,69509.0,0.07193288]
[1771123904806,0.0001713,69511.0,69510.0,0.07193209]
[1771123905202,0.0004,69515.0,69510.0,0.07193209]
[1771123905403,0.07232474,69519.0,69511.0,0.07193022]
[1771123905404,0.07192464,69518.0,69511.0,0.07193022]
[1771123905827,0.07192504,69517.0,69510.0,0.07193179]
[1771123906253,0.07192593,69516.0,69510.0,0.07193179]
[1771123906507,0.0719252,69517.0,69510.0,0.07193179]
[1771123909909,0.0004,69518.0,69512.0,0.07192922]
[1771123910110,0.0004,69518.0,69513.0,0.0719289]
[1771123910311,0.0004,69518.0,69513.0,0.07192858]
[1771123910518,0.0004,69518.0,69508.0,0.43518479]
[1771123910744,0.0004,69518.0,69513.0,0.02472884]
[1771123911780,0.0004,69518.0,69515.0,0.09665576]
[1771123912377,0.0004,69518.0,69515.0,0.02472884]
[1771123912580,0.0004,69518.0,69516.0,0.07192494]
[1771123913183,0.00044,69518.0,69516.0,0.07180494]
[1771123914157,0.00044,69518.0,69517.0,0.07192485]
[1771123915184,0.0002264,69522.0,69517.0,0.07192485]
[1771123916925,0.0004,69518.0,69517.0,0.07192485]
[1771123921145,0.0004,69518.0,69515.0,0.07192589]
[1771123921348,0.0004,69518.0,69512.0,0.02472884]
[1771123921349,0.0004,69518.0,69517.0,0.07292485]
[1771123922112,0.0004,69518.0,69517.0,0.07192485]
[1771123922849,4e-05,69524.0,69514.0,0.28770997]
[1771123922850,4e-05,69524.0,69523.0,0.07191864]
[1771123923003,4e-05,69524.0,69518.0,0.02472884]
[1771123923335,4e-05,69524.0,69519.0,0.09665085]
[1771123923759,4e-05,69524.0,69519.0,0.02472884]
[1771123923915,4e-05,69524.0,69523.0,0.07191864]
[1771123924593,0.0005864,69532.0,69519.0,0.02472884]
[1771123924731,0.0005864,69532.0,69526.0,0.07191522]
[1771123924932,0.0005864,69532.0,69527.0,0.0719145]
[1771123925354,0.0005864,69532.0,69524.0,0.02472884]
[1771123925579,0.07191244,69529.0,69522.0,0.07191932]
[1771123925800,0.07191244,69529.0,69522.0,0.07191931]
[1771123926412,0.07191244,69529.0,69523.0,0.07191853]
[1771123928152,0.07191046,69531.0,69524.0,0.07191717]
[1771123928356,0.07207155,69530.0,69523.0,0.07191826]
[1771123928577,0.00016,69530.0,69526.0,0.07191466]
[1771123928759,0.00016,69530.0,69527.0,0.0719145]
[1771123929728,0.0006264,69532.0,69529.0,0.07191243]
[1771123930070,0.0006264,69532.0,69528.0,0.07191317]
[1771123930071,0.00075712,69532.0,69528.0,0.07191317]
[1771123930208,0.00075712,69532.0,69531.0,0.07191037]
[1771123932794,0.00075712,69532.0,69531.0,0.07291037]
[1771123933100,0.00075712,69532.0,69531.0,0.001]
[1771123934473,0.00075712,69532.0,69530.0,0.07191126]
[1771123934687,0.0004,69535.0,69532.0,0.02413725]
[1771123934901,0.0004,69535.0,69532.0,0.07190924]
[1771123935104,0.0004,69535.0,69533.0,0.02413725]
[1771123935530,0.0004,69535.0,69534.0,0.07190726]
[1771123935908,4e-05,69538.0,69534.0,0.07190655]
[1771123936106,0.00016,69540.0,69537.0,0.07190416]
[1771123936306,0.00016,69540.0,69530.0,0.06594227]
[1771123936530,0.00016,69540.0,69534.0,0.09604367]
[1771123937672,0.00016,69540.0,69534.0,0.09704367]
[1771123937881,0.00016,69540.0,69535.0,0.09604273]
[1771123938228,0.00016,69540.0,69535.0,0.02413725]
[1771123938633,0.00016,69540.0,69535.0,0.09604319]
[1771123938945,0.00016,69540.0,69537.0,0.07190412]
[1771123939148,0.00016,69540.0,69537.0,0.09604137]
[1771123939776,0.00016,69540.0,69538.0,0.07190276]
[1771123939986,0.00016,69540.0,69537.0,0.02413725]
[1771123940163,0.00016,69540.0,69538.0,0.07190247]
[1771123940567,0.07189597,69545.0,69538.0,0.07190247]
[1771123940772,0.07189602,69545.0,69537.0,0.09603943]
[1771123941261,0.07189602,69545.0,69538.0,0.07190233]
[1771123941615,0.07229381,69549.0,69537.0,0.02413725]
[1771123941816,0.0004,69549.0,69537.0,0.02413725]
[1771123942044,0.0718942,69547.0,69538.0,0.07190313]
[1771123942219,0.07229351,69548.0,69541.0,0.07189933]
[1771123942423,0.07229351,69548.0,69539.0,0.07190127]
[1771123942606,0.0004,69548.0,69542.0,0.07189861]
[1771123943257,0.0004,69548.0,69545.0,0.07173581]
[1771123943258,4e-05,69546.0,69545.0,0.07173581]
[1771123943802,4e-05,69546.0,69544.0,0.07189669]
[1771123944028,4e-05,69546.0,69545.0,0.07189589]
[1771123944233,4e-05,69546.0,69542.0,0.09603547]
[1771123944607,4e-05,69546.0,69544.0,0.07189598]
[1771123944804,4e-05,69546.0,69544.0,0.07189635]
[1771123945325,4e-05,69546.0,69543.0,0.09603482]
[1771123945505,4e-05,69546.0,69544.0,0.07189692]
[1771123945872,4e-05,69546.0,69543.0,0.09603493]
[1771123946249,0.00044,69546.0,69543.0,0.02413725]
[1771123946622,0.00044,69546.0,69541.0,0.07189925]
[1771123946828,0.00044,69546.0,69538.0,0.44596915]
[1771123946989,0.00044,69546.0,69541.0,0.07189938]
[1771123947199,0.00044,69546.0,69544.0,0.002]
[1771123947423,0.00044,69546.0,69541.0,0.07189938]
[1771123947626,0.00044,69546.0,69542.0,0.07189892]
[1771123949683,0.00044,69546.0,69544.0,0.002]
[1771123950725,0.00044,69546.0,69542.0,0.07189892]
[1771123950930,0.0004,69549.0,69548.0,0.07189279]
[1771123952235,0.0004,69549.0,69548.0,0.07289279]
[1771123952935,0.0004,69549.0,69548.0,0.07284869]
[1771123953141,0.0004,69549.0,69548.0,0.0009559]
[1771123954616,0.0004,69549.0,69548.0,0.07284869]
[1771123957235,0.0004,69549.0,69548.0,0.0009559]
[1771123959549,0.0004,69549.0,69543.0,0.08630777]
[1771123959780,0.02434,69546.0,69530.0,0.43512983]
[1771123959962,0.07190332,69538.0,69531.0,0.07190946]
[1771123960165,0.02434,69538.0,69532.0,0.07190909]
[1771123960369,0.34492,69549.0,69535.0,0.07190526]
[1771123960370,0.09623835,69543.0,69535.0,0.07190526]
[1771123960681,0.07190007,69541.0,69537.0,0.0002]
[1771123960894,0.07190416,69537.0,69530.0,0.00032]
[1771123961096,0.0945097,69538.0,69530.0,0.07223056]
[1771123961338,0.0945097,69538.0,69531.0,0.07191019]
[1771123961543,0.02260621,69538.0,69530.0,0.0722311]
[1771123961696,0.02260621,69537.0,69530.0,0.00032]
[1771123961901,0.02260621,69537.0,69531.0,0.07191007]
[1771123963219,0.02260621,69537.0,69532.0,0.07190933]
[1771123964325,0.07190127,69540.0,69532.0,0.0719074]
[1771123965144,0.07190127,69540.0,69533.0,0.07190738]
[1771123965627,0.09642385,69540.0,69533.0,0.07190738]
[1771123967024,0.09542385,69540.0,69533.0,0.07190738]
[1771123967224,0.09642385,69540.0,69533.0,0.07190738]
[1771123967498,0.09542385,69540.0,69533.0,0.07210738]
[1771123967643,0.09642385,69540.0,69533.0,0.07210738]
[1771123968295,0.02452258,69540.0,69534.0,0.07190725]
[1771123968456,0.09642411,69540.0,69533.0,0.07210811]
[1771123969844,0.09542411,69540.0,69533.0,0.07210811]
[1771123970209,0.09642411,69540.0,69533.0,0.07210811]
[1771123970374,0.09542411,69540.0,69533.0,0.07210811]
[1771123970809,0.09642411,69540.0,69533.0,0.07210811]
[1771123971694,0.09642411,69540.0,69534.0,0.07190723]
[1771123972772,0.09542411,69540.0,69534.0,0.07190723]
[1771123973123,0.02452258,69540.0,69536.0,0.07190505]
[1771123973329,4e-05,69538.0,69536.0,0.07178505]
[1771123973741,0.02356258,69538.0,69536.0,0.07178505]
[1771123974307,4e-05,69538.0,69536.0,0.07178505]
[1771123975731,4e-05,69544.0,69541.0,0.07189939]
[1771123976770,0.00204,69544.0,69541.0,0.07189939]
[1771123977206,0.00204,69544.0,69539.0,0.07190176]
[1771123977207,0.0004,69547.0,69534.0,0.74702253]
[1771123977430,0.34492,69551.0,69546.0,0.07189486]
[1771123977654,0.0004,69551.0,69549.0,0.07189175]
[1771123978825,0.07189669,69545.0,69537.0,0.07190331]
[1771123979012,0.0843919,69544.0,69539.0,0.07190177]
[1771123979212,0.02352258,69546.0,69531.0,0.6321989]
[1771123979417,0.02352258,69546.0,69541.0,0.07189995]
[1771123979965,0.02352258,69546.0,69533.0,0.28782907]
[1771123979966,0.02352258,69546.0,69540.0,0.07190064]
[1771123980535,0.02352258,69546.0,69538.0,0.28761249]
[1771123980755,0.00056,69550.0,69548.0,0.07189271]
[1771123980934,0.0004,69553.0,69543.0,0.02458549]
[1771123980935,0.0004,69553.0,69551.0,0.07188969]
[1771123981135,0.00083563,69553.0,69551.0,0.07188969]
[1771123981754,0.00083563,69553.0,69552.0,0.07188865]
[1771123981960,0.0004,69554.0,69553.0,0.07188762]
[1771123982201,0.00053061,69554.0,69553.0,0.07188762]
[1771123982380,0.34464,69560.0,69554.0,0.07188591]
[1771123982974,0.34464,69560.0,69555.0,0.07188538]
[1771123983797,0.34664,69560.0,69555.0,0.07188538]
[1771123984236,0.34504,69560.0,69555.0,0.07188538]
[1771123985033,0.34504,69560.0,69554.0,0.07188625]
[1771123985373,0.34504,69560.0,69550.0,0.45939532]
[1771123985645,0.07188431,69557.0,69549.0,0.0718915]
[1771123985783,0.07188431,69557.0,69550.0,0.07189029]
[1771123985983,0.07188329,69558.0,69551.0,0.07188953]
[1771123986739,0.001,69557.0,69551.0,0.07188953]
[1771123987040,0.07188329,69558.0,69551.0,0.07188953]
[1771123987241,0.07188364,69557.0,69550.0,0.0718904]
[1771123987386,0.07188364,69557.0,69549.0,0.07232713]
[1771123987387,0.09540925,69554.0,69549.0,0.00043563]
[1771123987583,0.02352258,69557.0,69549.0,0.00043563]
[1771123987794,0.07188827,69553.0,69549.0,0.00043563]
[1771123987991,0.07188868,69552.0,69545.0,0.07189551]
[1771123988288,0.0954123,69551.0,69544.0,0.07189631]
[1771123988529,0.02352258,69551.0,69545.0,0.07189579]
[1771123988736,0.02352258,69551.0,69546.0,0.07189469]
[1771123989120,0.02352258,69551.0,69545.0,0.071894]
[1771123989315,0.02352258,69551.0,69547.0,0.07189371]
[1771123989518,0.02552258,69551.0,69547.0,0.07189371]
[1771123989722,0.02352258,69551.0,69547.0,0.07189371]
[1771123990120,0.02452258,69551.0,69547.0,0.07189371]
[1771123990359,0.02352258,69551.0,69547.0,0.07189371]
[1771123990757,0.02352258,69551.0,69545.0,0.071894]
[1771123990758,0.02352258,69551.0,69546.0,0.07189446]
[1771123990955,0.02352258,69551.0,69544.0,0.07189656]
[1771123991189,0.02352258,69551.0,69545.0,0.07189543]
[1771123991623,0.02352258,69551.0,69546.0,0.07189486]
[1771123992725,0.00043528,69552.0,69546.0,0.07189486]
[1771123994813,0.00143528,69552.0,69546.0,0.07189486]
[1771123995418,0.0718898,69551.0,69544.0,0.07189661]
[1771123995645,0.00143528,69552.0,69545.0,0.07189516]
[1771123995846,0.00143528,69552.0,69546.0,0.07189465]
[1771123996117,0.00043528,69552.0,69547.0,0.0718937]
[1771123997315,0.07232432,69552.0,69545.0,0.07189516]
[1771123997557,0.00043528,69552.0,69547.0,0.0002]
[1771123998088,0.00043528,69552.0,69548.0,0.07189269]
[1771123998296,0.00068548,69552.0,69548.0,0.07189269]
[1771123998444,0.00168548,69552.0,69548.0,0.07189269]
[1771123998638,0.00068548,69552.0,69547.0,0.0002]
[1771123998961,0.00168548,69552.0,69547.0,0.07209356]
[1771123999186,0.00168548,69552.0,69548.0,0.07189266]
[1771123999384,0.00068548,69552.0,69547.0,0.0002]
[1771123999541,0.00068548,69552.0,69548.0,0.07189279]
[1771124000538,0.00068548,69552.0,69548.0,0.07189236]
[1771124001662,0.00068548,69552.0,69548.0,0.07189279]
[1771124002436,0.00068548,69552.0,69547.0,0.07209191]
[1771124003223,4e-05,69550.0,69547.0,0.07209191]
[1771124004525,4e-05,69550.0,69548.0,0.07189277]
[1771124004681,4e-05,69550.0,69548.0,0.07209277]
[1771124005769,4e-05,69550.0,69548.0,0.07309277]
[1771124006444,7.748e-05,69552.0,69548.0,0.07309277]
[1771124007670,7.748e-05,69552.0,69548.0,0.07209277]
[1771124008415,7.748e-05,69552.0,69548.0,0.0970823]
[1771124008858,7.748e-05,69552.0,69548.0,0.0002]
[1771124009744,0.07196635,69552.0,69548.0,0.0002]
[1771124010201,7.748e-05,69552.0,69548.0,0.0002]
[1771124010911,7.748e-05,69552.0,69549.0,0.07189164]
[1771124011104,4e-05,69554.0,69550.0,0.09687963]
[1771124011842,4e-05,69554.0,69550.0,0.0718901]
[1771124012895,4e-05,69554.0,69550.0,0.07172333]
[1771124014339,4e-05,69556.0,69548.0,0.07209246]
[1771124014340,0.0001666,69558.0,69557.0,0.07188349]
[1771124014492,0.0001666,69558.0,69556.0,0.07188379]
[1771124015527,0.0001666,69558.0,69555.0,0.07188379]
[1771124015927,0.0001666,69558.0,69556.0,0.0718843]
[1771124016566,0.0001666,69558.0,69555.0,0.0718853]
[1771124016716,0.0001666,69558.0,69556.0,0.001]
[1771124016918,0.0001666,69558.0,69555.0,0.0718853]
[1771124017339,0.0001666,69558.0,69556.0,0.001]
[1771124017803,0.34448,69559.0,69556.0,0.001]
[1771124018005,0.33464105,69559.0,69554.0,0.07188473]
[1771124018434,0.33464105,69559.0,69556.0,0.001]
[1771124019685,0.33464105,69559.0,69554.0,0.07188648]
[1771124020109,0.33464105,69559.0,69551.0,0.07188885]
[1771124020110,0.33464105,69559.0,69548.0,0.00024]
[1771124020338,0.39325038,69559.0,69548.0,0.00024]
[1771124020537,0.07188988,69551.0,69548.0,0.00024]
[1771124021698,0.02433752,69554.0,69544.0,0.07193633]
[1771124021699,0.02433752,69554.0,69544.0,4e-05]
[1771124021897,4e-05,69556.0,69544.0,0.00047528]
[1771124021898,0.07189589,69545.0,69544.0,0.00047528]
[1771124022276,0.02433752,69541.0,69540.0,1e-08]
[1771124022451,0.02433752,69541.0,69534.0,0.0002]
[1771124022452,0.07190623,69535.0,69534.0,1e-08]
[1771124023501,0.0719055,69536.0,69534.0,1e-08]
[1771124023707,0.0719034,69538.0,69534.0,0.00100001]
[1771124024359,0.07190259,69539.0,69534.0,1e-08]
[1771124024559,0.0719038,69538.0,69534.0,1e-08]
[1771124024914,0.0719053,69536.0,69534.0,0.00100001]
[1771124025288,0.07190422,69537.0,69534.0,0.00100001]
[1771124025950,0.07190422,69537.0,69534.0,1e-08]
[1771124027032,0.28803688,69541.0,69534.0,1e-08]
[1771124027033,0.0719035,69538.0,69534.0,1e-08]
[1771124027552,0.001,69537.0,69534.0,1e-08]
[1771124027702,0.0719035,69538.0,69534.0,1e-08]
[1771124027904,0.001,69537.0,69529.0,0.02482139]
[1771124028199,0.001,69537.0,69534.0,0.0002]
[1771124028399,0.00012,69540.0,69539.0,0.07190209]
[1771124028605,0.00043528,69541.0,69535.0,0.02482139]
[1771124028807,0.00043528,69541.0,69540.0,0.07190106]
[1771124029429,0.07189188,69549.0,69539.0,0.07190206]
[1771124029671,0.07189188,69549.0,69534.0,0.0002]
[1771124029672,0.07189314,69548.0,69541.0,0.07189928]
[1771124032457,0.07289314,69548.0,69541.0,0.07189928]
[1771124032645,0.07189314,69548.0,69541.0,0.07189928]
[1771124033074,0.07289314,69548.0,69541.0,0.07189928]
[1771124033255,4e-05,69542.0,69541.0,0.07185928]
[1771124033759,4e-05,69542.0,69535.0,0.02482139]
[1771124033991,4e-05,69542.0,69535.0,0.0967269]
[1771124034186,4e-05,69542.0,69536.0,0.07190503]
[1771124034393,0.07193924,69542.0,69535.0,0.0967269]
[1771124034785,0.07190012,69541.0,69535.0,0.02482139]
[1771124035263,0.07190012,69541.0,69535.0,0.02502139]
[1771124035491,0.07190012,69541.0,69535.0,0.0002]
[1771124035690,0.07189935,69542.0,69535.0,0.07210623]
[1771124035867,0.07190316,69538.0,69535.0,0.0002]
[1771124036067,0.02442158,69543.0,69532.0,4e-05]
[1771124036275,0.02442158,69543.0,69535.0,0.002]
[1771124036497,0.02442158,69543.0,69532.0,4e-05]
[1771124036498,0.07190186,69540.0,69532.0,0.07194852]
[1771124036690,0.07190186,69540.0,69535.0,0.001]
[1771124037099,0.0719023,69539.0,69532.0,0.07194852]
[1771124038381,0.07190186,69540.0,69533.0,0.07190817]
[1771124038922,0.07290186,69540.0,69533.0,0.07190817]
[1771124039101,0.07190186,69540.0,69533.0,0.07190817]
[1771124039505,0.07290186,69540.0,69533.0,0.07190817]
[1771124040904,0.001,69540.0,69533.0,0.0719083]
[1771124041227,0.001,69540.0,69532.0,0.02486139]
[1771124041427,0.001,69540.0,69536.0,0.07190518]
[1771124041849,0.07189831,69543.0,69536.0,0.07190518]
[1771124042553,0.07189831,69543.0,69536.0,0.07210518]
[1771124042755,4e-05,69546.0,69536.0,0.07210518]
[1771124042756,4e-05,69546.0,69538.0,0.02482139]
[1771124042964,4e-05,69546.0,69540.0,0.02482139]
[1771124043115,0.001,69543.0,69540.0,0.02482139]
[1771124043686,4e-05,69546.0,69540.0,0.09672221]
[1771124043802,4e-05,69546.0,69540.0,0.09672162]
[1771124044008,4e-05,69546.0,69543.0,0.07189793]
[1771124044817,4e-05,69546.0,69542.0,0.07189866]
[1771124045497,4e-05,69546.0,69543.0,0.07189789]
[1771124045889,4e-05,69546.0,69542.0,0.07189838]
[1771124046039,4e-05,69546.0,69543.0,0.07189765]
[1771124046243,4e-05,69546.0,69542.0,0.07189838]
[1771124046474,4e-05,69546.0,69541.0,0.09671935]
[1771124046699,4e-05,69546.0,69543.0,0.001]
[1771124046908,4e-05,69546.0,69542.0,0.07189899]
[1771124047043,4e-05,69546.0,69543.0,0.07189781]
[1771124047446,0.0002045,69554.0,69538.0,4e-05]
[1771124047644,4e-05,69556.0,69552.0,0.09670924]
[1771124047889,4e-05,69556.0,69552.0,0.02482139]
[1771124048087,4e-05,69556.0,69551.0,0.07188787]
[1771124048286,4e-05,69552.0,69551.0,0.07176787]
[1771124049317,4e-05,69552.0,69551.0,0.07276787]
[1771124049900,4e-05,69556.0,69553.0,0.07188703]
[1771124050128,4e-05,69556.0,69554.0,0.02482139]
[1771124050340,4e-05,69556.0,69555.0,0.07188555]
[1771124050637,4e-05,69556.0,69554.0,0.02482139]
[1771124050794,4e-05,69556.0,69550.0,0.28755978]
[1771124050795,4e-05,69556.0,69553.0,0.07188762]
[1771124053656,4e-05,69556.0,69552.0,0.07188825]
[1771124054035,0.07189589,69545.0,69537.0,0.02303336]
[1771124054242,0.07189541,69546.0,69539.0,0.07190136]
[1771124054451,0.07189589,69545.0,69538.0,0.07207363]
[1771124054652,0.071895,69546.0,69539.0,0.07190155]
[1771124055024,0.071895,69546.0,69544.0,0.00104]
[1771124055449,0.07189405,69547.0,69544.0,4e-05]
[1771124056564,0.07189089,69550.0,69544.0,4e-05]
[1771124057635,0.07189193,69549.0,69544.0,4e-05]
[1771124062702,0.07189309,69548.0,69544.0,4e-05]
[1771124063081,0.07190003,69541.0,69540.0,0.00016]
[1771124063429,0.07189764,69544.0,69540.0,0.00016]
[1771124064197,0.07193556,69546.0,69540.0,0.00016]
[1771124064400,0.07189603,69545.0,69540.0,0.00016]
[1771124064807,0.07189603,69545.0,69540.0,0.00316]
[1771124065005,0.07189603,69545.0,69540.0,0.00016]
[1771124066044,4e-05,69546.0,69540.0,0.00016]
[1771124066045,4e-05,69546.0,69540.0,0.00036]
[1771124066411,0.07189752,69544.0,69540.0,0.00036]
[1771124068454,0.0718985,69543.0,69540.0,0.00036]
[1771124069751,0.0718973,69544.0,69540.0,0.00036]
[1771124070827,0.0718973,69544.0,69540.0,0.00136]
[1771124071177,0.0718973,69544.0,69540.0,0.00036]
[1771124071490,0.0718973,69544.0,69540.0,0.00032]
[1771124075410,0.0718973,69544.0,69538.0,0.07203374]
[1771124075777,0.07189779,69545.0,69538.0,0.00013061]
[1771124076287,0.07189692,69544.0,69538.0,0.00013061]
[1771124077434,0.07189779,69545.0,69538.0,0.07203333]
[1771124077798,0.07193666,69546.0,69538.0,0.07203333]
[1771124078119,4e-05,69540.0,69538.0,0.07203333]
[1771124079416,4e-05,69540.0,69538.0,0.07403333]
[1771124079694,4e-05,69540.0,69538.0,0.00213061]
[1771124080702,4e-05,69540.0,69538.0,0.00033061]
[1771124081198,4e-05,69540.0,69538.0,0.00233061]
[1771124081404,4e-05,69540.0,69538.0,0.07423367]
[1771124085130,4e-05,69540.0,69538.0,0.07438317]
[1771124090388,4e-05,69540.0,69538.0,0.00248011]
[1771124093626,4e-05,69540.0,69537.0,0.06358671]
[1771124093798,9.629e-05,69540.0,69537.0,0.06358671]
[1771124094800,9.629e-05,69540.0,69538.0,0.07190312]
[1771124097448,9.629e-05,69540.0,69536.0,0.07210337]
[1771124097598,9.629e-05,69540.0,69536.0,0.0002]
[1771124097804,9.629e-05,69540.0,69536.0,0.07210491]
[1771124098117,0.00049629,69540.0,69537.0,0.07210371]
[1771124100500,0.00044,69544.0,69537.0,0.0002]
[1771124100709,0.00016,69550.0,69544.0,0.07189612]
[1771124100906,0.00016,69550.0,69545.0,0.0949751]
[1771124103836,0.00116,69550.0,69545.0,0.0949751]
[1771124104690,0.00116,69550.0,69545.0,0.02307972]
[1771124106422,0.00116,69550.0,69545.0,0.09497519]
[1771124107262,0.00156,69550.0,69546.0,0.07189464]
[1771124107469,0.00156,69550.0,69547.0,0.07189317]
[1771124108050,0.00056,69550.0,69547.0,0.07189317]
[1771124108291,0.00056,69550.0,69547.0,0.07181317]
[1771124109147,0.0004,69551.0,69548.0,0.02307972]
[1771124110297,0.0004,69553.0,69543.0,0.07189796]
[1771124110473,0.00044,69554.0,69543.0,0.07189796]
[1771124110474,0.00044,69554.0,69552.0,0.02307972]